bitfinex-derivatives/quotes_BNBF0:USTF0_20250101
["timestamp","ask_amount","ask_price","bid_price","bid_amount"]
[1735695566371,0.2813256,710.92,709.88,1.04910894]
[1735695567474,0.2813256,710.92,709.8,1.04910894]
[1735695568570,0.2813256,710.92,709.78,1.04910894]
[1735695570775,0.2813256,710.92,709.79,1.04910894]
[1735695571877,0.2813256,710.92,709.81,1.04910894]
[1735695572778,0.2813256,710.92,709.84,1.04910894]
[1735695574477,0.2813256,710.92,709.83,1.04910894]
[1735695576479,0.25912076,710.91,709.83,1.04910894]
[1735695576681,0.25912076,710.91,709.84,1.04910894]
[1735695577080,0.28133352,710.9,709.84,1.04910894]
[1735695577274,0.25912076,710.89,709.84,1.04910894]
[1735695577679,0.25912076,710.89,710.03,1.04910894]
[1735695578082,0.28134143,710.88,710.03,1.04910894]
[1735695578581,0.25912378,710.87,710.03,1.04910894]
[1735695578779,0.25912378,710.87,709.79,1.05091998]
[1735695578780,0.28134935,710.86,710.02,1.04910894]
[1735695578983,0.25912378,710.85,710.02,1.04910894]
[1735695579180,1.72903909,710.85,710.02,1.04910894]
[1735695579376,0.25912378,710.84,710.02,1.04910894]
[1735695579778,0.25912378,710.84,710.03,1.04910894]
[1735695582479,1.46991531,710.85,710.03,1.04910894]
[1735695582887,1.46991531,710.85,710.05,1.04910894]
[1735695583482,0.25910286,710.84,710.05,1.04910894]
[1735695583687,1.46991531,710.85,710.09,1.04910894]
[1735695584889,1.46991531,710.85,710.11,1.04910894]
[1735695585985,1.46991531,710.85,710.1,1.04910894]
[1735695587187,1.46991531,710.85,709.89,1.04910894]
[1735695587981,1.46991531,710.85,709.87,1.04910894]
[1735695590889,1.46991531,710.85,709.88,1.04910894]
[1735695591888,1.46991531,710.85,709.89,1.04910894]
[1735695592491,1.46991531,710.85,709.88,1.04910894]
[1735695593387,1.46991531,710.85,709.87,1.04910894]
[1735695595895,1.46991531,710.85,710.0,1.04910894]
[1735695596790,1.46991531,710.85,709.53,0.78877203]
[1735695596791,1.46991531,710.85,709.97,1.04910894]
[1735695597590,1.46991531,710.85,709.99,1.04910894]
[1735695598592,1.46991531,710.85,710.0,1.04910894]
[1735695599391,1.46991531,710.85,710.01,1.04910894]
[1735695600388,1.46991531,710.85,709.95,1.04910894]
[1735695601188,1.46991531,710.85,709.96,1.04910894]
[1735695603994,1.46991531,710.85,709.94,1.04910894]
[1735695604988,1.46991531,710.85,709.64,1.05091998]
[1735695604989,1.46991531,710.85,709.95,1.04910894]
[1735695605992,1.46991531,710.85,709.91,1.04910894]
[1735695607098,1.46991531,710.85,709.97,1.04910894]
[1735695609907,1.46991531,710.85,709.98,1.04910894]
[1735695611006,1.46991531,710.85,709.96,1.04910894]
[1735695611903,1.46991531,710.85,709.97,1.04910894]
[1735695613006,1.46991531,710.85,709.53,0.78877203]
[1735695613007,1.46991531,710.85,709.99,1.04910894]
[1735695615806,1.46991531,710.85,710.05,1.04910894]
[1735695616903,1.46991531,710.85,710.03,1.04910894]
[1735695617711,1.46991531,710.85,710.02,1.04910894]
[1735695619207,1.46991531,710.85,709.73,1.05091998]
[1735695619208,1.46991531,710.85,710.01,1.04910894]
[1735695620007,1.46991531,710.85,710.02,1.04910894]
[1735695622007,1.46991531,710.85,710.06,1.04910894]
[1735695627519,1.46991531,710.85,710.13,1.04910894]
[1735695628423,1.46991531,710.85,710.04,1.04910894]
[1735695629922,1.46991531,710.85,710.05,1.04910894]
[1735695633327,1.46991531,710.85,710.06,1.04910894]
[1735695636835,1.46991531,710.85,710.07,1.04910894]
[1735695637726,1.46991531,710.85,710.05,1.04910894]
[1735695638630,1.46991531,710.85,710.08,1.04910894]
[1735695639630,1.46991531,710.85,710.09,1.04910894]
[1735695641726,1.46991531,710.85,710.08,1.04910894]
[1735695643735,1.46991531,710.85,709.53,0.78877203]
[1735695643736,1.46991531,710.85,710.06,1.04910894]
[1735695644735,1.46991531,710.85,710.07,1.04910894]
[1735695645836,1.46991531,710.85,710.09,1.04910894]
[1735695646529,1.46991531,710.85,710.11,1.04910894]
[1735695647738,1.46991531,710.85,709.53,0.78877203]
[1735695647739,1.46991531,710.85,710.14,1.04910894]
[1735695648838,1.46991531,710.85,710.15,1.04910894]
[1735695649234,0.25911355,710.84,710.15,1.04910894]
[1735695649436,1.46991531,710.85,710.15,1.04910894]
[1735695649633,1.46991531,710.85,710.13,1.04910894]
[1735695650540,1.46991531,710.85,710.17,1.04910894]
[1735695651538,1.46991531,710.85,710.16,1.04910894]
[1735695652343,1.46991531,710.85,710.2,1.04910894]
[1735695652939,0.25908977,710.84,710.19,1.04910894]
[1735695653843,0.25908977,710.84,710.23,1.04910894]
[1735695654737,0.25908977,710.84,710.24,1.04910894]
[1735695655237,0.25909055,710.83,710.24,1.04910894]
[1735695655442,0.25909055,710.82,710.24,1.04910894]
[1735695655640,1.46991531,710.85,710.23,1.04910894]
[1735695655840,0.25909235,710.84,710.23,1.04910894]
[1735695657845,0.25909235,710.84,710.21,1.04910894]
[1735695658441,0.25909235,710.84,710.22,1.04910894]
[1735695659347,0.25909235,710.84,710.21,1.04910894]
[1735695660648,0.25910225,710.83,710.21,1.04910894]
[1735695660848,0.25910225,710.82,710.21,1.04910894]
[1735695661151,0.25910225,710.81,710.21,1.04910894]
[1735695661350,0.25910225,710.8,710.21,1.04910894]
[1735695661551,1.46991531,710.85,710.21,1.04910894]
[1735695662250,1.46991531,710.85,710.1,1.04910894]
[1735695664852,1.46991531,710.85,710.08,1.04910894]
[1735695665957,1.46991531,710.85,710.12,1.04910894]
[1735695666751,1.46991531,710.85,710.1,1.04910894]
[1735695667653,1.46991531,710.85,710.12,1.04910894]
[1735695670855,1.46991531,710.85,710.11,1.04910894]
[1735695672755,1.46991531,710.85,710.18,1.04910894]
[1735695673856,1.46991531,710.85,710.2,1.04910894]
[1735695675855,0.28134935,710.86,710.2,1.04910894]
[1735695676463,1.05091998,711.35,710.2,1.04910894]
[1735695676760,1.46935156,711.08,710.2,1.04910894]
[1735695676962,0.2811595,711.34,710.14,1.04910894]
[1735695677961,0.2811595,711.34,709.14,2.14562829]
[1735695677962,0.2811595,711.34,710.25,1.04910894]
[1735695678162,1.46878825,711.33,710.25,1.04910894]
[1735695678360,0.2811674,711.32,710.25,1.04910894]
[1735695679165,0.2811674,711.32,710.07,1.04910894]
[1735695680161,0.2811674,711.32,710.04,1.04910894]
[1735695681364,0.2811674,711.32,710.0,1.04910894]
[1735695683565,0.2811674,711.32,709.96,1.04910894]
[1735695684164,0.2811674,711.32,709.92,1.04910894]
[1735695685864,0.2811674,711.32,709.89,1.04910894]
[1735695686465,0.2811674,711.32,709.93,1.04910894]
[1735695687670,0.2811674,711.32,709.9,1.04910894]
[1735695688368,0.2811674,711.32,709.99,1.04910894]
[1735695691172,0.2811674,711.32,710.01,1.04910894]
[1735695691571,0.25898558,711.31,710.01,1.04910894]
[1735695691872,0.2811674,711.32,709.74,1.05091998]
[1735695691873,0.25898579,711.3,710.02,1.04910894]
[1735695692071,0.2811674,711.32,710.02,1.04910894]
[1735695692267,0.25898723,711.31,710.02,1.04910894]
[1735695692976,0.25898723,711.31,710.01,1.04910894]
[1735695694477,0.25899596,711.3,710.01,1.04910894]
[1735695694775,0.25899596,711.29,710.01,1.04910894]
[1735695694973,0.25899596,711.28,710.01,1.04910894]
[1735695695171,0.25899596,711.31,710.0,1.04910894]
[1735695695473,0.25899596,711.3,710.0,1.04910894]
[1735695695673,0.2811674,711.32,710.0,1.04910894]
[1735695695875,0.25899283,711.31,710.0,1.04910894]
[1735695696875,0.25899283,711.31,710.01,1.04910894]
[1735695697066,0.25898776,711.3,710.01,1.04910894]
[1735695697272,0.25898776,711.29,710.01,1.04910894]
[1735695697475,0.25898776,711.28,710.01,1.04910894]
[1735695697676,0.25898776,711.27,710.01,1.04910894]
[1735695697879,0.2811674,711.32,710.01,1.04910894]
[1735695698072,0.25898445,711.31,710.01,1.04910894]
[1735695698276,0.25898445,711.31,709.75,1.05091998]
[1735695698277,0.25898445,711.31,710.03,1.04910894]
[1735695699276,0.25898445,711.31,709.59,0.78439699]
[1735695699277,0.25898445,711.31,710.06,1.04910894]
[1735695700377,0.25898445,711.31,710.11,1.04910894]
[1735695701378,0.25898445,711.31,710.14,1.04910894]
[1735695702279,0.2811674,711.32,710.14,1.04910894]
[1735695702476,0.25898499,711.31,710.14,1.04910894]
[1735695702781,0.25898499,711.31,709.59,0.78439699]
[1735695702782,0.25898499,711.31,710.15,1.04910894]
[1735695703181,0.2589926,711.3,710.15,1.04910894]
[1735695703381,0.2589926,711.29,710.15,1.04910894]
[1735695703582,0.2589926,711.28,710.15,1.04910894]
[1735695703778,0.2589926,711.27,710.15,1.04910894]
[1735695704082,0.54018372,711.26,710.16,1.04910894]
[1735695704381,0.2589926,711.25,710.16,1.04910894]
[1735695704585,0.54018767,711.25,710.16,1.04910894]
[1735695704781,0.2589926,711.24,710.16,1.04910894]
[1735695705178,0.25899052,711.23,710.22,1.04910894]
[1735695705383,0.25899052,711.22,710.22,1.04910894]
[1735695705587,0.25899052,711.21,710.22,1.04910894]
[1735695705783,0.25899052,711.2,710.22,1.04910894]
[1735695706082,0.25899052,711.19,710.22,1.04910894]
[1735695706284,0.25899052,711.18,710.22,1.04910894]
[1735695706584,1.75042256,711.25,710.26,1.04910894]
[1735695706784,0.25897688,711.24,710.26,1.04910894]
[1735695707789,0.25897688,711.24,710.25,1.04910894]
[1735695708983,0.25897688,711.24,710.01,1.05091998]
[1735695708984,1.75042256,711.25,710.28,1.04910894]
[1735695709183,0.25897414,711.24,710.28,1.04910894]
[1735695709787,0.25897414,711.24,710.32,1.04910894]
[1735695710287,1.75042256,711.25,710.32,1.04910894]
[1735695710487,0.25897131,711.24,710.32,1.04910894]
[1735695710886,1.75042256,711.25,710.37,1.04910894]
[1735695711387,0.25897498,711.24,710.37,1.04910894]
[1735695711986,0.25897498,711.24,710.45,1.04910894]
[1735695713087,1.75042256,711.25,710.45,1.04910894]
[1735695713287,0.25897657,711.24,710.45,1.04910894]
[1735695714984,0.25897657,711.24,710.42,1.04910894]
[1735695715785,0.25898873,711.23,710.42,1.04910894]
[1735695715989,0.25898873,711.22,710.42,1.04910894]
[1735695716292,0.25898873,711.21,710.42,1.04910894]
[1735695716589,0.25898732,711.2,710.42,1.04910894]
[1735695716788,1.75042256,711.25,710.42,1.04910894]
[1735695716789,0.25898732,711.19,710.42,1.04910894]
[1735695716991,0.25898732,711.18,710.42,1.04910894]
[1735695717186,0.25898732,711.17,710.42,1.04910894]
[1735695717387,0.25898732,711.16,710.42,1.04910894]
[1735695717588,0.25898732,711.15,710.49,1.04910894]
[1735695718393,0.25899086,711.14,710.48,1.04910894]
[1735695718593,0.25899086,711.13,710.48,1.04910894]
[1735695718792,0.25899086,711.12,710.48,1.04910894]
[1735695718994,0.25899086,711.11,710.48,1.04910894]
[1735695719188,0.25898968,711.1,710.48,1.04910894]
[1735695719390,1.46903626,711.16,710.49,1.04910894]
[1735695719590,0.25898547,711.15,710.49,1.04910894]
[1735695721593,0.25898547,711.15,710.53,1.04910894]
[1735695721801,0.25899066,711.14,710.53,1.04910894]
[1735695722099,0.25899066,711.13,710.53,1.04910894]
[1735695722395,1.46903626,711.16,710.53,1.04910894]
[1735695722596,1.46903626,711.16,710.25,1.05091998]
[1735695722597,0.25898862,711.15,710.52,1.04910894]
[1735695723200,1.46903626,711.16,710.52,1.04910894]
[1735695724503,1.46903626,711.16,710.36,1.04910894]
[1735695726297,1.46903626,711.16,710.35,1.04910894]
[1735695729999,0.2590111,711.15,710.35,1.04910894]
[1735695730602,0.2590111,711.15,710.32,1.04910894]
[1735695731702,0.2590111,711.15,709.72,2.14562829]
[1735695731703,0.2590111,711.15,710.23,1.04910894]
[1735695732303,0.28123857,711.14,710.23,1.04910894]
[1735695732504,0.2590111,711.13,710.23,1.04910894]
[1735695733007,0.2590111,711.13,710.17,1.04910894]
[1735695733708,0.25907166,711.12,710.17,1.04910894]
[1735695733906,0.25907166,711.11,710.17,1.04910894]
[1735695734106,0.25907166,711.1,710.17,1.04910894]
[1735695734413,0.54033,711.09,710.17,1.04910894]
[1735695734708,0.54033396,711.08,710.17,1.04910894]
[1735695734909,0.25907166,711.07,710.17,1.04910894]
[1735695735409,0.25907166,711.07,710.11,1.04910894]
[1735695735909,0.28127021,711.06,710.11,1.04910894]
[1735695736102,0.25907166,711.05,710.11,1.04910894]
[1735695736507,0.25906877,711.04,710.1,1.04910894]
[1735695736711,0.25906877,711.03,710.1,1.04910894]
[1735695737012,0.25906877,711.02,710.1,1.04910894]
[1735695737306,0.28127021,711.06,710.09,1.04910894]
[1735695737307,0.25906877,711.01,710.09,1.04910894]
[1735695737506,0.25906877,711.0,710.09,1.04910894]
[1735695737706,0.28127021,711.06,710.09,1.04910894]
[1735695737707,0.25906877,710.99,710.09,1.04910894]
[1735695737909,0.28127021,711.06,710.09,1.04910894]
[1735695738210,0.25905454,711.05,710.08,1.04910894]
[1735695739106,0.25906096,711.04,710.08,1.04910894]
[1735695739308,0.25906096,711.03,710.08,1.04910894]
[1735695739508,0.25906096,711.02,710.07,1.04910894]
[1735695739711,0.25906096,711.01,710.07,1.04910894]
[1735695739913,0.25906096,711.0,710.07,1.04910894]
[1735695740112,0.25906096,710.99,710.07,1.04910894]
[1735695740313,0.25906096,710.98,710.07,1.04910894]
[1735695740513,0.25906096,710.97,710.07,1.04910894]
[1735695740712,0.28127021,711.06,710.1,1.04910894]
[1735695740713,0.25906096,710.96,710.1,1.04910894]
[1735695740912,0.25906096,710.95,710.1,1.04910894]
[1735695741111,0.25906096,710.94,710.1,1.04910894]
[1735695741314,0.28127021,711.06,710.1,1.04910894]
[1735695741513,0.25906397,711.05,710.1,1.04910894]
[1735695741715,0.28127021,711.06,710.08,1.04910894]
[1735695742715,0.28127021,711.06,710.02,1.04910894]
[1735695743412,0.28127021,711.06,710.01,1.04910894]
[1735695744516,0.28127021,711.06,709.96,1.04910894]
[1735695745715,0.28127021,711.06,709.97,1.04910894]
[1735695746613,0.28127021,711.06,709.74,0.28179333]
[1735695746614,0.28127021,711.06,709.98,1.04910894]
[1735695747209,0.28127021,711.06,710.0,1.04910894]
[1735695748111,0.25913077,711.05,710.0,1.04910894]
[1735695748516,0.28128208,711.03,710.0,1.04910894]
[1735695748713,0.25913077,711.02,709.98,1.04910894]
[1735695748909,0.28128999,711.01,709.98,1.04910894]
[1735695749113,0.25913077,711.0,709.98,1.04910894]
[1735695749516,1.46985323,710.99,709.98,1.04910894]
[1735695749713,0.25913077,710.98,709.74,0.28179333]
[1735695750515,0.25915195,710.97,709.74,0.28179333]
[1735695750716,0.25915195,710.96,709.74,0.28179333]
[1735695751016,1.46985323,710.99,709.74,0.28179333]
[1735695751017,0.25915195,710.95,709.74,0.28179333]
[1735695751316,1.46985323,710.99,709.74,0.28179333]
[1735695751612,0.25913045,710.98,709.74,0.28179333]
[1735695752412,1.46985323,710.99,709.74,0.28179333]
[1735695752618,0.25913101,710.98,709.74,0.28179333]
[1735695755318,0.25912979,710.97,709.74,0.28179333]
[1735695755519,1.46985323,710.99,709.74,0.28179333]
[1735695756620,0.25911969,710.98,709.74,0.28179333]
[1735695758522,0.25911969,710.98,709.75,1.04910894]
[1735695759127,0.28130582,710.97,709.75,1.04910894]
[1735695759323,0.25911969,710.96,709.75,1.04910894]
[1735695759525,0.25911969,710.96,709.76,1.04910894]
[1735695759921,0.54042946,710.96,709.76,1.04910894]
[1735695760225,0.25911969,710.95,709.76,1.04910894]
[1735695760422,0.28130977,710.96,709.76,1.04910894]
[1735695760627,0.25912113,710.95,709.76,1.04910894]
[1735695760927,0.25912113,710.95,709.78,1.04910894]
[1735695761728,0.25912113,710.95,709.79,1.04910894]
[1735695762625,0.25912113,710.95,709.74,0.28179333]
[1735695762626,0.25912113,710.95,709.78,1.04910894]
[1735695763226,0.28131769,710.94,709.78,1.04910894]
[1735695763427,0.25912113,710.93,709.78,1.04910894]
[1735695763626,0.2813256,710.92,709.78,1.04910894]
[1735695764130,0.25914261,710.91,709.74,0.28179333]
[1735695764321,0.28133352,710.9,709.74,0.28179333]
[1735695764527,0.25914261,710.89,709.74,0.28179333]
[1735695765024,0.28133352,710.9,709.74,0.28179333]
[1735695765829,0.25915518,710.89,709.74,0.28179333]
[1735695766025,0.28133352,710.9,709.74,0.28179333]
[1735695766226,0.25914589,710.89,709.74,0.28179333]
[1735695766627,0.54048685,710.88,709.74,0.28179333]
[1735695766826,0.28134143,710.88,709.74,0.28179333]
[1735695767026,0.25914693,710.87,709.74,0.28179333]
[1735695767525,0.28134935,710.86,709.74,0.28179333]
[1735695767731,0.25915556,710.85,709.74,0.28179333]
[1735695767933,0.25915556,710.85,709.7,1.04910894]
[1735695768730,0.28135726,710.84,709.7,1.04910894]
[1735695768930,0.25915556,710.83,709.7,1.04910894]
[1735695769127,0.28136518,710.82,709.7,1.04910894]
[1735695769333,0.25915556,710.81,709.6,1.04910894]
[1735695769529,0.2813731,710.8,709.6,1.04910894]
[1735695771030,0.2813731,710.8,709.59,1.04910894]
[1735695771229,0.2591748,710.79,709.59,1.04910894]
[1735695771431,0.28138101,710.78,709.59,1.04910894]
[1735695771629,0.2591748,710.77,709.59,1.04910894]
[1735695771833,0.54055977,710.77,709.6,1.04910894]
[1735695772033,0.2591748,710.76,709.6,1.04910894]
[1735695773033,0.2591748,710.76,709.7,1.04910894]
[1735695773930,0.25917894,710.75,709.72,1.04910894]
[1735695774133,0.25917894,710.74,709.72,1.04910894]
[1735695774330,0.25917894,710.73,709.72,1.04910894]
[1735695774534,0.25917894,710.72,709.72,1.04910894]
[1735695774834,0.25917894,710.72,709.51,1.05091998]
[1735695774835,0.25917894,710.72,709.71,1.04910894]
[1735695775238,0.28140873,710.71,709.71,1.04910894]
[1735695775434,0.25917894,710.7,709.71,1.04910894]
[1735695775631,0.54059163,710.7,709.71,1.04910894]
[1735695775936,0.25917894,710.69,709.69,1.04910894]
[1735695776533,0.25917894,710.69,709.67,1.04910894]
[1735695777037,0.28141269,710.7,709.67,1.04910894]
[1735695777537,0.28141269,710.7,709.45,1.05091998]
[1735695777538,0.28141269,710.7,709.66,1.04910894]
[1735695778641,0.28141269,710.7,709.32,0.28196018]
[1735695787447,0.28141269,710.7,709.32,1.33106912]
[1735695788447,0.28141269,710.7,709.35,1.04910894]
[1735695789548,0.28141269,710.7,709.36,1.04910894]
[1735695790548,0.25921595,710.69,709.38,1.04910894]
[1735695791651,0.25921595,710.69,709.61,1.04910894]
[1735695792760,0.25921595,710.69,709.66,1.04910894]
[1735695793652,0.25921595,710.69,709.67,1.04910894]
[1735695794252,0.5406326,710.69,709.67,1.04910894]
[1735695794452,0.25921812,710.68,709.67,1.04910894]
[1735695795652,0.25921812,710.68,709.33,0.78649337]
[1735695795653,0.25921812,710.68,709.64,1.04910894]
[1735695796049,0.28141665,710.69,709.64,1.04910894]
[1735695796650,1.46964631,711.23,709.64,1.04910894]
[1735695797250,1.46964631,711.23,710.11,1.04910894]
[1735695798556,1.46964631,711.23,709.98,1.04910894]
[1735695799357,1.46964631,711.23,709.7,1.04910894]
[1735695800360,1.46964631,711.23,709.71,0.28180524]
[1735695802756,0.28120694,711.22,709.71,0.28180524]
[1735695808363,0.25900945,711.21,709.71,0.28180524]
[1735695809055,0.28120694,711.22,709.71,0.28180524]
[1735695811261,0.25901737,711.21,709.71,0.28180524]
[1735695812859,0.28120694,711.22,709.71,0.28180524]
[1735695813063,0.25903433,711.21,709.71,0.28180524]
[1735695813266,0.28120694,711.22,709.71,0.28180524]
[1735695813866,0.25902912,711.21,709.71,0.28180524]
[1735695814166,0.28121484,711.2,709.71,0.28180524]
[1735695814371,0.25904025,711.19,709.71,0.28180524]
[1735695814668,0.28122275,711.18,709.71,0.28180524]
[1735695816468,0.25902738,711.17,709.71,0.28180524]
[1735695816663,0.28122275,711.18,709.71,0.28180524]
[1735695816865,0.25903501,711.17,709.71,0.28180524]
[1735695818163,0.28123066,711.16,709.71,0.28180524]
[1735695818368,0.25905802,711.15,709.71,0.28180524]
[1735695818669,0.28123857,711.14,709.71,0.28180524]
[1735695818866,0.25905802,711.13,709.71,0.28180524]
[1735695819066,0.28124648,711.12,709.71,0.28180524]
[1735695819268,0.25905802,711.11,709.71,0.28180524]
[1735695819467,0.28125439,711.1,709.71,0.28180524]
[1735695819671,0.25906605,711.09,709.71,0.28180524]
[1735695820272,0.28125439,711.1,709.71,0.28180524]
[1735695821473,0.25907087,711.09,709.71,0.28180524]
[1735695821669,0.2812623,711.08,709.71,0.28180524]
[1735695822669,0.25905686,711.07,709.71,0.28180524]
[1735695822969,0.54032312,711.07,709.71,0.28180524]
[1735695823174,0.25905686,711.06,709.71,0.28180524]
[1735695823674,0.28126626,711.07,709.71,0.28180524]
[1735695823975,0.25906782,711.06,709.71,0.28180524]
[1735695825771,0.25906782,711.06,709.74,1.04910894]
[1735695826376,0.25905693,711.05,709.74,1.04910894]
[1735695826677,0.28126626,711.07,709.8,1.04910894]
[1735695826873,0.25905906,711.06,709.8,1.04910894]
[1735695827572,0.25905906,711.06,709.83,1.04910894]
[1735695828374,0.28127417,711.05,710.0,1.04910894]
[1735695828574,0.25905906,711.04,710.0,1.04910894]
[1735695828772,0.54033718,711.04,710.0,1.04910894]
[1735695829075,0.54033718,711.04,709.72,0.78406528]
[1735695829076,1.72869683,711.03,710.02,1.04910894]
[1735695829269,0.2590712,711.02,710.02,1.04910894]
[1735695830274,0.2590712,711.02,710.11,1.04910894]
[1735695831279,0.2590712,711.02,710.2,1.04910894]
[1735695832473,0.2590712,711.02,710.21,1.04910894]
[1735695833279,0.2590712,711.02,709.72,0.78406528]
[1735695833280,0.2590712,711.02,710.24,1.04910894]
[1735695834179,0.2590712,711.02,710.25,1.04910894]
[1735695834776,0.28128999,711.01,710.25,1.04910894]
[1735695834979,0.2590712,711.0,710.25,1.04910894]
[1735695835177,0.54036515,711.0,710.26,1.04910894]
[1735695835472,0.2590712,710.99,710.26,1.04910894]
[1735695836073,0.2590712,710.99,709.73,2.14562829]
[1735695836074,0.2590712,710.99,710.25,1.04910894]
[1735695836982,0.2590712,710.99,710.24,1.04910894]
[1735695837280,0.25906855,710.98,710.24,1.04910894]
[1735695837475,0.25906855,710.97,710.24,1.04910894]
[1735695837679,0.25906855,710.96,710.24,1.04910894]
[1735695837982,0.25906855,710.95,710.24,1.04910894]
[1735695838181,0.25906855,710.94,710.24,1.04910894]
[1735695838481,0.25906855,710.93,710.24,1.04910894]
[1735695838780,0.25906855,710.92,710.24,1.04910894]
[1735695838982,0.25906855,710.91,710.24,1.04910894]
[1735695839181,0.28129395,711.0,710.24,1.04910894]
[1735695839182,0.25906855,710.9,710.24,1.04910894]
[1735695839379,0.28129395,711.0,710.24,1.04910894]
[1735695839380,0.25906855,710.89,710.24,1.04910894]
[1735695839581,0.25906855,710.88,710.23,1.04910894]
[1735695839880,0.25906676,710.87,710.23,1.04910894]
[1735695840080,0.25906676,710.86,710.23,1.04910894]
[1735695840281,0.25906676,710.85,710.23,1.04910894]
[1735695840580,1.46952737,710.91,710.23,1.04910894]
[1735695840782,0.25906925,710.9,710.24,1.04910894]
[1735695841577,1.46952737,710.91,710.24,1.04910894]
[1735695841777,1.46952737,710.91,710.2,1.04910894]
[1735695842581,1.46952737,710.91,710.21,1.04910894]
[1735695843581,1.46952737,710.91,710.16,1.04910894]
[1735695844882,1.46952737,710.91,710.17,1.04910894]
[1735695846077,1.46952737,710.91,709.71,0.28180524]
[1735695846078,1.46952737,710.91,709.83,1.04910894]
[1735695847183,1.46952737,710.91,709.74,1.04910894]
[1735695848283,1.46952737,710.91,709.71,0.28180524]
[1735695848683,0.25917627,710.9,709.71,0.28180524]
[1735695852180,0.2591849,710.89,709.71,0.28180524]
[1735695852382,0.2591849,710.88,709.71,0.28180524]
[1735695852580,0.2591849,710.87,709.71,0.28180524]
[1735695852781,1.46952737,710.91,709.71,0.28180524]
[1735695852981,0.25917751,710.9,709.71,0.28180524]
[1735695854992,0.25918167,710.89,709.71,0.28180524]
[1735695855190,0.25918167,710.88,709.71,0.28180524]
[1735695855390,0.25918167,710.87,709.71,0.28180524]
[1735695855587,0.25918167,710.86,709.71,0.28180524]
[1735695855788,0.25918167,710.85,709.71,0.28180524]
[1735695855989,0.25918167,710.84,709.71,0.28180524]
[1735695856190,0.25918167,710.83,709.71,0.28180524]
[1735695856391,0.25918167,710.82,709.71,0.28180524]
[1735695856593,0.25918167,710.81,709.71,0.28180524]
[1735695857189,0.25918167,710.81,709.46,1.04910894]
[1735695857493,0.259203,710.8,709.46,1.04910894]
[1735695857694,0.259203,710.79,709.46,1.04910894]
[1735695857889,0.259203,710.78,709.46,1.04910894]
[1735695858089,0.259203,710.77,709.46,1.04910894]
[1735695858295,0.259203,710.76,709.38,1.04910894]
[1735695858494,0.259203,710.75,709.38,1.04910894]
[1735695858688,0.259203,710.74,709.38,1.04910894]
[1735695858886,1.47025687,710.82,709.38,1.04910894]
[1735695858887,0.259203,710.73,709.38,1.04910894]
[1735695859095,0.259203,710.72,709.38,1.04910894]
[1735695859297,0.259203,710.71,709.38,1.04910894]
[1735695859496,0.54061569,710.7,709.5,1.04910894]
[1735695859797,0.259203,710.69,709.5,1.04910894]
[1735695860192,0.54063312,710.68,709.5,1.04910894]
[1735695860388,0.54063708,710.67,709.5,1.04910894]
[1735695860586,0.25921251,710.66,709.49,1.04910894]
[1735695860990,0.28143249,710.65,709.49,1.04910894]
[1735695861194,0.25921251,710.64,709.49,1.04910894]
[1735695861393,0.25921251,710.64,709.47,1.04910894]
[1735695861791,0.28143249,710.65,709.47,1.04910894]
[1735695861991,0.25920599,710.64,709.47,1.04910894]
[1735695862196,0.25920599,710.64,709.55,1.04910894]
[1735695863098,0.25919486,710.63,709.54,1.04910894]
[1735695863293,0.25919486,710.62,709.54,1.04910894]
[1735695863491,0.25919486,710.61,709.54,1.04910894]
[1735695863695,0.25919486,710.6,709.54,1.04910894]
[1735695863897,0.25919486,710.59,709.54,1.04910894]
[1735695864097,0.25919486,710.58,709.54,1.04910894]
[1735695864396,0.25919486,710.57,709.54,1.04910894]
[1735695864598,0.25919486,710.56,709.57,1.04910894]
[1735695864795,0.25919486,710.55,709.57,1.04910894]
[1735695864991,0.25919486,710.54,709.57,1.04910894]
[1735695865198,0.25919486,710.53,709.57,1.04910894]
[1735695865395,0.25919486,710.52,709.57,1.04910894]
[1735695865596,0.25919486,710.51,709.53,1.04910894]
[1735695865897,0.25919486,710.5,709.53,1.04910894]
[1735695866196,0.25923163,710.49,709.53,1.04910894]
[1735695866397,0.25923163,710.48,709.53,1.04910894]
[1735695866593,0.25923163,710.47,709.53,1.04910894]
[1735695866790,0.25923163,710.47,709.0,2.14562829]
[1735695866791,0.25923163,710.46,709.52,1.04910894]
[1735695867097,0.2592399,710.45,709.52,1.04910894]
[1735695867299,1.47047949,710.5,709.52,1.04910894]
[1735695867598,0.25923175,710.49,709.52,1.04910894]
[1735695867798,0.25923175,710.49,709.43,1.04910894]
[1735695868298,0.25922759,710.48,709.43,1.04910894]
[1735695868500,0.25922759,710.49,709.43,1.04910894]
[1735695868696,0.25922759,710.48,709.45,1.04910894]
[1735695868900,0.25923271,710.47,709.45,1.04910894]
[1735695869093,1.47047949,710.5,709.45,1.04910894]
[1735695869297,0.25923266,710.49,709.45,1.04910894]
[1735695869694,0.25923266,710.49,709.46,1.04910894]
[1735695869896,1.47047949,710.5,709.46,1.04910894]
[1735695870096,0.25922346,710.49,709.46,1.04910894]
[1735695870795,1.47047949,710.5,709.46,1.04910894]
[1735695871001,0.25924598,710.49,709.46,1.04910894]
[1735695871800,0.25924598,710.49,709.41,1.04910894]
[1735695872696,0.25924598,710.49,709.42,1.04910894]
[1735695874021,0.25924598,710.49,709.43,1.04910894]